Cogmind - Beta 15 @@@ ROGUE MODE // 2025.10.02 @ 23:15:16 Player: Grey Result: Destroyed by B-75 Beast with Heavy Machine Gun Performance ------------- Evolutions (4) 2000 Regions Visited (7) 1400 Robots Destroyed (64) 320 Value Destroyed (2295) 2295 Prototype IDs (1) 20 Alien Tech Used (0) 0 Bonus (11) 11 TOTAL SCORE: 6046 Bonus ------- Follower Combat Kills 37 Friendly Fire -26 Cogmind --------- Core Integrity 0/850 Matter 290/300 Energy 11/100 System Corruption 0% Temperature Cool (12) Movement Core (450) Ox8 Location -6/Extension Parts ------- > --- POWER (1) -------- (None) > --- PROPULSION (4) --- (None) > --- UTILITY (6) ------ Large Storage Unit Armor Integrity Analyzer Transmission Jammer > --- WEAPON (4) ------- Phasing Sabre > --- INVENTORY (15) --- Improved Medium Treads High-capacity Storage Unit Improved Terrain Scan Processor ECM Suite Phasing Sabre Peak State ------------ > --- POWER ------------ Micro Nuclear Core > --- PROPULSION ------- Light Treads Light Treads Light Treads Light Treads > --- UTILITY ---------- Large Storage Unit Structural Scanner Improved Targeting Computer Transmission Jammer Medium Reactive Plating Insulated Plating > --- WEAPON ----------- High-powered Shock Rifle High-powered Shock Rifle High-powered Shock Rifle Welding Torch > --- INVENTORY -------- Light Nuclear Core Light Treads High-capacity Storage Unit Improved Terrain Scan Processor Armor Integrity Analyzer ECM Suite Propulsion Shielding Phasing Sabre Phasing Sabre Phasing Sabre [Rating: 42] Favorites ----------- Power Light Nuclear Core Engine Ion Engine Power Core Light Nuclear Core Propulsion Light Treads Treads Light Treads Leg Aluminum Leg Wheel Compact Wheel Utility Structural Scanner Device Structural Scanner Storage Small Storage Unit Processor Signal Interpreter Protection Insulated Plating Weapon Light Assault Rifle Energy Gun High-powered Shock Rifle Ballistic Gun Light Assault Rifle Special Weapon Welding Torch Slashing Weapon Phasing Sabre Build | -11 -10 -10 -9 -8 -7 -6 -6 ------- Run | Yrd Mat Min Mat Mat Fac Fac Ext Slots Evolved 8 | . . . 2 2 2 2 . Power . | . . . . . . . . Propulsion 2 | . . . 1 . 1 . . Utility 4 | . . . 1 1 1 1 . Weapon 2 | . . . . 1 . 1 . Parts Attached 64 | 6 3 2 1 23 7 2 20 Power 8 | 1 . 1 . 4 2 . . Engine 2 | 1 . . . 1 . . . Core 6 | . . 1 . 3 2 . . Reactor . | . . . . . . . . Propulsion 19 | 2 . . . 10 2 . 5 Treads 12 | 2 . . . 3 2 . 5 Leg 4 | . . . . 4 . . . Wheel 3 | . . . . 3 . . . Hover . | . . . . . . . . Flight . | . . . . . . . . Utility 18 | 1 2 . 1 2 2 2 8 Device 5 | . 2 . . . . . 3 Storage 3 | 1 . . . 1 . 1 . Processor 3 | . . . 1 1 . . 1 Hackware . | . . . . . . . . Protection 7 | . . . . . 2 1 4 Artifact . | . . . . . . . . Weapon 19 | 2 1 1 . 7 1 . 7 Energy Gun 3 | . . . . . . . 3 Energy Cannon . | . . . . . . . . Ballistic Gun 13 | 2 1 1 . 7 1 . 1 Ballistic Cannon . | . . . . . . . . Launcher . | . . . . . . . . Special Weapon 1 | . . . . . . . 1 Impact Weapon . | . . . . . . . . Slashing Weapon 2 | . . . . . . . 2 Piercing Weapon . | . . . . . . . . Special Melee Weapon . | . . . . . . . . Unidentified Prototypes 1 | . . . . 1 . . . Parts Lost 43 | . . 1 . 11 3 . 28 Power 6 | . . 1 . 2 1 . 2 Propulsion 14 | . . . . 5 1 . 8 Utility 10 | . . . . 1 . . 9 Weapon 13 | . . . . 3 1 . 9 Highest Loss Streak 13 | . . 1 . 4 2 . 13 To Critical Strikes . | . . . . . . . . Average Backups 8 | 1 3 6 6 6 10 11 9 Power . | . 1 1 1 . 1 1 . Propulsion 1 | . . . . 1 2 4 2 Utility 4 | . 2 5 4 4 5 6 5 Weapon . | . . . 1 . . . . Tool/Special . | . . . . . . . . Unused Backups 9 | . . 2 . 4 1 . 2 Power 2 | . . 1 . . 1 . . Propulsion 1 | . . . . 1 . . . Utility 5 | . . 1 . 3 . . 1 Weapon 1 | . . . . . . . 1 Tool/Special . | . . . . . . . . Average Slot Usage (%) 92 | . 96 99 88 90 99 93 86 Engine 1 | . 14 . . 2 . . . Core 7 | . . 13 11 5 7 6 5 Treads 22 | . 28 28 22 11 29 26 23 Leg 1 | . . . . 6 . . . Wheel 1 | . . . . 4 . . . Device 11 | . 10 14 11 12 7 6 11 Storage 8 | . 14 14 11 9 7 6 6 Processor 9 | . . . 11 14 15 13 8 Protection 3 | . . . . . 6 13 8 Energy Gun 2 | . . . . . . . 9 Ballistic Gun 19 | . 28 28 22 22 22 20 7 Peak Build Rating 42 | 6 7 9 10 26 33 33 42 Average Rating 21 | 4 6 8 10 16 31 33 33 On Entrance 15 | . 6 7 9 10 26 32 33 Naked Turns . | . . . . . . . . Heaviest Build 67 | 13 14 14 13 55 60 63 67 Greatest Support 83 | 40 40 40 40 60 83 83 83 Greatest Overweight (x) 8 | . . . . 5 1 . 8 Average Overweight (x) . | . . . . . . . . Largest Inventory Capacity 20 | 8 8 8 8 20 20 20 15 Average Capacity 12 | 6 8 8 8 10 20 16 15 Most Carried 13 | 4 7 8 6 12 12 12 13 Average Carried 8 | 1 3 6 6 6 10 11 9 Final Capacity 20 | 8 8 8 8 20 20 15 15 Final Carried 12 | 1 7 7 6 12 12 12 5 Class Distribution -------------------- 30% | Mutant 22% | Gunner 14% | Scavenger-Gunner 8% | Scavenger-Tank 6% | Skirmisher 5% | Scavenger-Mutant 3% | Tank 3% | Scavenger-Skirmisher 3% | Infiltrator-Mutant Dominant Class ---------------- Mutant | -10/Materials Mutant | -10/Mines Mutant | -9/Materials Skirmisher | -8/Materials Gunner | -7/Factory Tank | -6/Factory Scavenger-Gunner | -6/Extension Resources | -11 -10 -10 -9 -8 -7 -6 -6 ----------- Run | Yrd Mat Min Mat Mat Fac Fac Ext Matter Collected 2085 | 209 23 161 46 642 461 . 543 Remotely . | . . . . . . . . Salvage Created 2530 | . 23 186 65 1037 591 . 628 Parts 124 | . 2 10 4 51 33 . 24 Haulers Intercepted . | . . . . . . . . Recyclers Shooed 1 | . . . . . . . 1 Parts Field Recycled . | . . . . . . . . Retrieved Matter . | . . . . . . . . Parts Self-Destructed . | . . . . . . . . Prevented . | . . . . . . . . Kills | -11 -10 -10 -9 -8 -7 -6 -6 ------- Run | Yrd Mat Min Mat Mat Fac Fac Ext Combat Hostiles Destroyed 52 | . 1 6 2 20 12 . 11 Melee 1 | . . . . . . . 1 Guns 51 | . 1 6 2 20 12 . 10 Classes Destroyed 12 | . 2 1 . 4 4 . 1 Worker 3 | . . . . 2 1 . . Builder 2 | . . . . 1 . . 1 Recycler 2 | . . . . 1 1 . . Operator 1 | . . . . . 1 . . Watcher 4 | . 1 . . 3 . . . Swarmer 12 | . 1 3 . 6 2 . . Grunt 27 | . . 3 2 10 4 . 8 Duelist 1 | . . . . . 1 . . Sentry 9 | . . . . 4 3 . 2 Hunter 1 | . . . . . 1 . . Programmer 1 | . . . . . 1 . . Behemoth 1 | . . . . . . . 1 Best Kill Streak 10 | . 1 4 1 10 4 . 5 Combat Bots Only 5 | . 1 4 1 4 3 . 5 Max Kills in Single Turn 2 | . 1 2 1 2 2 . 1 Gunslinging 1 | . . 1 . 1 . . . Exploded . | . . . . . . . . Melee 1 | . . . . . . . 1 Uniques/NPCs Destroyed . | . . . . . . . . Combat | -11 -10 -10 -9 -8 -7 -6 -6 -------- Run | Yrd Mat Min Mat Mat Fac Fac Ext Hostile Shots Fired 594 | . 24 28 13 120 166 . 243 Missed 159 | . 7 3 2 34 52 . 61 Hits 435 | . 17 25 11 86 114 . 182 Melee 3 | . . . . . 3 . . Projectile 432 | . 17 25 11 86 111 . 182 AOE 1 | . 1 . . . . . . Critical Strikes 6 | . . . 2 1 1 . 2 Part Disruptions 3 | . . . . . 3 . . Damage Taken 6365 | . 232 335 134 1013 1345 . 3306 Core 1273 | . . 101 50 84 186 . 852 Absorbed by Shields . | . . . . . . . . Redirected to Shielding 21 | . . . . . . . 21 Ignored by Resistances 232 | . . . . . 35 . 197 Core Remaining (%) 80 | 100 . 59 87 84 73 . . Volleys Fired 193 | . 5 17 18 68 45 . 40 Largest 4 | . 2 2 2 3 3 . 4 Hottest 200 | . 40 40 40 75 78 . 200 Shots Fired 471 | . 10 34 36 176 102 . 113 Gun 463 | . 10 34 36 176 102 . 105 Cannon . | . . . . . . . . Launcher . | . . . . . . . . Special 8 | . . . . . . . 8 Kinetic 447 | . 10 34 36 176 102 . 89 Thermal 8 | . . . . . . . 8 Explosive . | . . . . . . . . Electromagnetic 16 | . . . . . . . 16 Robot Hit Streak 18 | . 3 10 18 10 15 . 17 Robot Miss Streak 10 | . 3 3 2 5 8 . 10 Penetration Max . | . . . . . . . . Secondary Targets 6 | . . 2 . 3 . . 1 Max Gunslinging Chain 1 | . . 1 . 1 . . 1 Shots Hit Robots 332 | . 5 23 27 112 72 . 93 Core Hits 219 | . 2 13 8 58 61 . 77 Critical Kills 2 | . . . . 1 . . 1 Critical Parts Destroyed 1 | . . . . 1 . . . Critical Strikes 5 | . . . . 2 . . 3 Destroy 3 | . . . . 2 . . 1 Sever 2 | . . . . . . . 2 Melee Attacks 20 | . . . . . . . 20 Impact . | . . . . . . . . Slashing 20 | . . . . . . . 20 Piercing . | . . . . . . . . Sneak Attacks . | . . . . . . . . Combat Hostiles . | . . . . . . . . Follow-up Attacks . | . . . . . . . . Damage Inflicted 5571 | . 53 270 211 1488 1438 . 2111 Guns 4633 | . 53 270 211 1488 1320 . 1291 Cannons . | . . . . . . . . Explosions 108 | . . . . . 108 . . Melee 790 | . . . . . . . 790 Ramming 27 | . . . . . 10 . 17 Kinetic 4455 | . 53 270 211 1488 1320 . 1113 Thermal 13 | . . . . . . . 13 Explosive . | . . . . . . . . Electromagnetic 286 | . . . . . 108 . 178 Impact . | . . . . . . . . Slashing 790 | . . . . . . . 790 Piercing . | . . . . . . . . Highest Corruption 3 | . . . . 3 . . . Average Corruption 3 | . . . . 3 . . . Corruption Purged . | . . . . . . . . Corruption Blocked . | . . . . . . . . Effects 19 | . . . . 19 . . . Message Errors 7 | . . . . 7 . . . Matter Fused 2 | . . . . 2 . . . Heat Flow Errors 3 | . . . . 3 . . . Energy Discharges 2 | . . . . 2 . . . Data Loss (minor) 4 | . . . . 4 . . . Misfires 1 | . . . . 1 . . . Overload Shots . | . . . . . . . . Overflow Damage . | . . . . . . . . Projectiles . | . . . . . . . . Explosions . | . . . . . . . . Melee . | . . . . . . . . Knockbacks . | . . . . . . . . Impact . | . . . . . . . . Kinetic . | . . . . . . . . Secondary . | . . . . . . . . Self-Inflicted Damage 94 | . . . . . 94 . . Shots 5 | . . . . . 5 . . Rammed 4 | . . . . . 2 . 2 Targets Rammed 4 | . . . . . 2 . 2 Kicked . | . . . . . . . . Crushed . | . . . . . . . . Highest Temperature 187 | . . 20 9 187 81 . 141 Average Temperature 31 | . . 8 5 30 19 . 48 Received Heat Transfer 1383 | . . 156 102 351 159 . 615 Siege Activations . | . . . . . . . . Martial Activations . | . . . . . . . . Shielding Activations . | . . . . . . . . Robots Disrupted . | . . . . . . . . Combat Hostiles . | . . . . . . . . Robots Corrupted . | . . . . . . . . Combat Hostiles . | . . . . . . . . Parts Fried . | . . . . . . . . Impact Corruptions . | . . . . . . . . Robots Melted . | . . . . . . . . Combat Hostiles . | . . . . . . . . Parts Melted . | . . . . . . . . Heat Transferred 100 | . . . . . . . 100 Parts Sabotaged . | . . . . . . . . Parts Stolen . | . . . . . . . . Parts Stripped . | . . . . . . . . Power Chain Reactions 1 | . . . . . 1 . . Alert | -11 -10 -10 -9 -8 -7 -6 -6 ------- Run | Yrd Mat Min Mat Mat Fac Fac Ext Maximum Alert Level . | . . . . . . . . Low Security (%) 100 | 100 100 100 100 100 100 100 100 Level 1 . | . . . . . . . . Level 2 . | . . . . . . . . Level 3 . | . . . . . . . . Level 4 . | . . . . . . . . Level 5 . | . . . . . . . . High Security . | . . . . . . . . Max Security . | . . . . . . . . Peak Influence 144 | . 45 80 55 103 144 40 88 Initial 40 | . . . . . 39 40 1 Average 25 | . 6 8 15 39 53 11 10 Influence Increases 1740 | . 52 140 110 630 481 4 323 Destroy 0b10 Robot/C 1060 | . 20 120 40 400 240 . 240 Destroy 0b10 Robot/NC 60 | . 5 . . 35 15 . 5 Destroy Leader 218 | . 12 20 10 86 70 . 20 Allied During Kill 9 | . . . . . . . 9 Successful Hack 8 | . . . . . . 4 4 Disable Machine 75 | . . . . 15 60 . . Destroy Structure 10 | . . . . 4 6 . . Partial Spotted 15 | . . . . 15 . . . Lose Combat Pursuer 285 | . 15 . 60 75 90 . 45 Influence Decreases 1740 | . 52 140 110 542 485 84 327 Entered New Map 96 | . . . . . 49 44 3 Time Decay 1424 | . 52 130 110 452 426 40 214 Lost Part 180 | . . 10 . 90 10 . 70 Lost Ally 40 | . . . . . . . 40 Squads Dispatched 6 | . . . 1 2 2 . 1 Investigation 1 | . . . . 1 . . . Extermination 1 | . . . . . 1 . . Reinforcement 4 | . . . 1 1 1 . 1 Assault . | . . . . . . . . Garrison . | . . . . . . . . Intercept . | . . . . . . . . Searches Triggered . | . . . . . . . . Construction Impeded . | . . . . . . . . Haulers Reinforced . | . . . . . . . . Active Scanning Responses . | . . . . . . . . Cargo Convoy Interrupts . | . . . . . . . . Stealth | -11 -10 -10 -9 -8 -7 -6 -6 --------- Run | Yrd Mat Min Mat Mat Fac Fac Ext Distress Signals 3 | . . . 1 1 . . 1 Communications Jammed 4 | . . . . . . . 4 Distress Signals 4 | . . . . . . . 4 Times Spotted 92 | . 6 6 7 30 21 . 22 Peak Tracking Total 6 | . 3 3 4 6 5 . 5 Tactical Retreats 15 | . 1 . 2 4 4 . 4 Traps | -11 -10 -10 -9 -8 -7 -6 -6 ------- Run | Yrd Mat Min Mat Mat Fac Fac Ext Traps Triggered 1 | . . . . 1 . . . Indirectly . | . . . . . . . . Trap Hack Attempts . | . . . . . . . . Triggered . | . . . . . . . . Disarmed . | . . . . . . . . Reprogrammed . | . . . . . . . . Reused . | . . . . . . . . Traps Extracted . | . . . . . . . . Installed . | . . . . . . . . Triggered . | . . . . . . . . Machines | -11 -10 -10 -9 -8 -7 -6 -6 ---------- Run | Yrd Mat Min Mat Mat Fac Fac Ext Machines Disabled 5 | . . . . 1 4 . . Max in Single Turn 4 | . . . . 1 4 . . Machines Repaired . | . . . . . . . . Machines Dismantled . | . . . . . . . . Machines Sabotaged . | . . . . . . . . Overloaded Fab Kills . | . . . . . . . . Hacking | -11 -10 -10 -9 -8 -7 -6 -6 --------- Run | Yrd Mat Min Mat Mat Fac Fac Ext Machines Accessed 13 | . 1 . . 4 4 1 3 Terminals 11 | . 1 . . 4 2 1 3 Fabricators . | . . . . . . . . Repair Stations 2 | . . . . . 2 . . Recycling Units . | . . . . . . . . Scanalyzers . | . . . . . . . . Garrison Access . | . . . . . . . . Total Hacks 21 | . 1 . . 6 7 2 5 Successful 9 | . . . . 2 4 1 2 Failed 12 | . 1 . . 4 3 1 3 Catastrophic 2 | . . . . . . . 2 Database Lockouts . | . . . . . . . . Manual . | . . . . . . . . Terminals 18 | . 1 . . 6 4 2 5 Fabricators . | . . . . . . . . Repair Stations 3 | . . . . . 3 . . Recycling Units . | . . . . . . . . Scanalyzers . | . . . . . . . . Garrison Access . | . . . . . . . . Terminal Hacks 8 | . . . . 2 3 1 2 Record 4 | . . . . 1 3 . . Open Door 2 | . . . . . . 1 1 Alert Level 1 | . . . . 1 . . . Locate Traps 1 | . . . . . . . 1 Fabricator Hacks . | . . . . . . . . Repair Station Hacks 1 | . . . . . 1 . . Scan Component 1 | . . . . . 1 . . Recycling Unit Hacks . | . . . . . . . . Scanalyzer . | . . . . . . . . Garrison Access Hacks . | . . . . . . . . Unauthorized Hacks . | . . . . . . . . Terminals . | . . . . . . . . Fabricators . | . . . . . . . . Repair Stations . | . . . . . . . . Recycling Units . | . . . . . . . . Scanalyzers . | . . . . . . . . Garrison Access . | . . . . . . . . Data Cores Recovered 1 | . . . . . 1 . . Used . | . . . . . . . . Hacking Detections 10 | . 1 . . 3 3 1 2 Full Trace Events . | . . . . . . . . Feedback Events . | . . . . . . . . Feedback Blocked . | . . . . . . . . Robot Schematics Acquired . | . . . . . . . . Robots Built . | . . . . . . . . Authchips . | . . . . . . . . Time . | . . . . . . . . Total Robot Build Rating . | . . . . . . . . Part Schematics Acquired . | . . . . . . . . Parts Built . | . . . . . . . . Authchips . | . . . . . . . . Time . | . . . . . . . . Total Part Build Rating . | . . . . . . . . Parts Repaired . | . . . . . . . . Time . | . . . . . . . . Parts Recycled . | . . . . . . . . Recycled Matter . | . . . . . . . . Retrieved Matter . | . . . . . . . . Retrieved Components . | . . . . . . . . Parts Scanalyzed . | . . . . . . . . Part Schematics Acquired . | . . . . . . . . Parts Damaged . | . . . . . . . . Bothacking | -11 -10 -10 -9 -8 -7 -6 -6 ------------ Run | Yrd Mat Min Mat Mat Fac Fac Ext Used RIF Installer . | . . . . . . . . Robots Hacked . | . . . . . . . . Non-combat . | . . . . . . . . Combat . | . . . . . . . . Robot Hacks Applied . | . . . . . . . . Relay Couplers Released . | . . . . . . . . Fabnet Peak Effective % . | . . . . . . . . Robots Rewired . | . . . . . . . . Allies Hacked . | . . . . . . . . Hacks Repelled . | . . . . . . . . Allies | -11 -10 -10 -9 -8 -7 -6 -6 -------- Run | Yrd Mat Min Mat Mat Fac Fac Ext Total Allies 2 | . . . . . . . 2 Largest Group 2 | . . . . . . . 2 Highest-Rated Group 62 | . . . . . . . 62 Highest-Rated Ally 31 | . . . . . . . 31 Total Orders . | . . . . . . . . Ally Attacks 22 | . . . . . . . 22 Total Damage 408 | . . . . . . . 408 Kills 1 | . . . . . . . 1 Allies Corrupted . | . . . . . . . . Allies Melted . | . . . . . . . . Intel | -11 -10 -10 -9 -8 -7 -6 -6 ------- Run | Yrd Mat Min Mat Mat Fac Fac Ext Active Infowar (turns) 6151 | . 280 961 361 1661 1120 176 1592 Sensors 2037 | . 74 961 361 641 . . . Structural 4710 | . 206 . . 1645 1120 176 1563 Jamming 1018 | . . . . . . . 1018 ECM 245 | . . . . . . . 245 Robot Analysis Total . | . . . . . . . . Derelict Logs Recovered 1 | . . 1 . . . . . Drone Launches . | . . . . . . . . Drone Recoveries . | . . . . . . . . Exploration | -11 -10 -10 -9 -8 -7 -6 -6 ------------- Run | Yrd Mat Min Mat Mat Fac Fac Ext Turns Passed 6314 | 77 361 961 361 1661 1120 176 1597 Spaces Moved 2759 | 43 190 274 126 692 521 105 808 Core 20 | 3 . . . 15 . . 2 Treads 2417 | 40 190 274 126 355 521 105 806 Legs 249 | . . . . 249 . . . Wheels 73 | . . . . 73 . . . Hover . | . . . . . . . . Flight . | . . . . . . . . Fastest Speed 50 | 50 160 160 160 93 165 165 160 Average Speed 159 | 152 160 160 160 143 172 165 162 Slowest Speed 450 | 160 160 160 160 300 245 165 450 Overloaded Moves . | . . . . . . . . Propulsion Burnouts . | . . . . . . . . Robots Hopped . | . . . . . . . . Potential Cave-ins . | . . . . . . . . Cave-ins Triggered . | . . . . . . . . Exploration Rate (%) 31 | 4 38 50 21 67 18 4 48 Regions Visited 7 Branch Regions 2 Pre-discovered Areas . | . . . . . . . . Known Exits Taken 4 | . . . 1 1 1 1 . Unknown Exits Taken 3 | 1 1 1 . . . . . Scrap Searched 1 | . . 1 . . . . . Spaces Dug . | . . . . . . . . Terrain Destroyed 5 | . . . . . 5 . . Melee . | . . . . . . . . Projectile . | . . . . . . . . AOE 5 | . . . . . 5 . . Terrain Rammed . | . . . . . . . . Walls Destroyed . | . . . . . . . . Machines Disabled . | . . . . . . . . Actions | -11 -10 -10 -9 -8 -7 -6 -6 --------- Run | Yrd Mat Min Mat Mat Fac Fac Ext Total 4306 | 55 238 767 257 1244 665 107 973 Wait 1168 | . 32 470 113 414 77 . 62 Move 2752 | 42 189 273 125 691 520 104 808 Hop . | . . . . . . . . Pick Up 73 | 7 8 3 . 32 9 1 13 Fast Attach 1 | . . . . 1 . . . Attach 50 | 6 1 1 1 14 5 1 21 Detach 2 | . . . . . . . 2 Swap 22 | . 2 1 . 11 3 1 4 Drop 21 | . 1 2 . 13 4 . 1 Fire 193 | . 5 17 18 68 45 . 40 Melee 20 | . . . . . . . 20 Ram . | . . . . . . . . Kick . | . . . . . . . . Crush 4 | . . . . . 2 . 2 Escape Stasis . | . . . . . . . . Rewire . | . . . . . . . . Trap . | . . . . . . . . Miscellaneous . | . . . . . . . . Route ------- -11/Scrapyard -10/Materials -10/Mines -9/Materials -8/Materials -7/Factory -6/Factory -6/Extension History --------- Turn | Location | Event 5 | -11/Scrapyard | Discovered new exit (range 16) 78 | -11/Scrapyard | Entered Materials 313 | -10/Materials | Build established: Mutant 403 | -10/Materials | Discovered new exit (range 6) 439 | -10/Materials | Entered Mines 501 | -10/Mines | Learned Materials emergency access door positions 546 | -10/Mines | Excavation squad dispatched 546 | -10/Mines | A large section of the Mines collapsed 796 | -10/Mines | Excavation squad dispatched 1046 | -10/Mines | Excavation squad dispatched 1296 | -10/Mines | Excavation squad dispatched 1386 | -10/Mines | Discovered new exit (range 10) 1400 | -10/Mines | Entered Materials 1400 | -9/Materials | Evolved 2 slots: Propulsion x1, Utility x1 1755 | -9/Materials | Discovered new exit (range 5) 1760 | -9/Materials | Identified exit to Materials 1761 | -9/Materials | Entered another Materials area 1761 | -8/Materials | Evolved 2 slots: Utility x1, Weapon x1 2113 | -8/Materials | Build established: Skirmisher 2461 | -8/Materials | Lost 4 parts (2n1u1w) 2624 | -8/Materials | Lost 3 parts (1n2w) 3084 | -8/Materials | Discovered new exit (range 14) 3116 | -8/Materials | Identified exit to Factory 3410 | -8/Materials | Build established: Gunner 3422 | -8/Materials | Entered Factory 3422 | -7/Factory | Evolved 2 slots: Propulsion x1, Utility x1 4500 | -7/Factory | Discovered new exit (range 10) 4540 | -7/Factory | Identified exit to Factory 4542 | -7/Factory | Entered another Factory area 4542 | -6/Factory | Evolved 2 slots: Utility x1, Weapon x1 4711 | -6/Factory | Discovered new exit (range 6) 4716 | -6/Factory | Identified exit to Extension 4718 | -6/Factory | Entered Extension 5035 | -6/Extension | Rescued a captive Derelict 5036 | -6/Extension | Rescued a captive Derelict 5094 | -6/Extension | Build established: Scavenger-Tank 5126 | -6/Extension | Spotted B-75 Beast 5312 | -6/Extension | Lost 4 parts (1n1u2w) 5809 | -6/Extension | Build established: Scavenger-Gunner 6018 | -6/Extension | Disrupted transfer network 6238 | -6/Extension | Spotted B-75 Beast 6287 | -6/Extension | Destroyed B-75 Beast 6300 | -6/Extension | Core integrity fell below 50% 6312 | -6/Extension | Core integrity fell below 20% 6315 | -6/Extension | Destroyed by B-75 Beast with Heavy Machine Gun Last Messages --------------- Plating. 06293_ Lgt. Treads destroyed. 06295_ R-10 Processor collects Coolant Injector. 06299_ R-10 Processor collects Rnf. Deuterium Engine. 06300_ Acquired 11 matter. 06303_ Knocked back. 06303_ R-10 Processor collects Rnf. Deuterium Engine. 06306_ Phasing Sabre destroyed. 06306_ W-25 Informer distress signal jammed. 06307_ R-10 Processor collects Imp. Cooling System. 06307_ W-25 Informer distress signal jammed. 06308_ Imp. Targeting Computer destroyed. 06308_ W-25 Informer distress signal jammed. 06309_ Acquired Imp. Medium Treads. 06309_ W-25 Informer distress signal jammed. 06311_ R-10 Processor collects Hvy. Machine Gun. 06315_ Knocked back. Map ----- +----------------------------------------------------+ | ###??## ####??????????????????????????? | | ####### ##???## ########??????????????????????? | | ####### ##???## ########??????????????????????? | | ?????## ##???## ##??????????????????????? | | ?????## ####### ##??????????????????????? | | ?????## ####### ##??????????????????????? | | ?????## ^ ##??????????????????????? | | ####### ^ ##??????????????????????? | | ####### ^ ##??????????????????????? | | ^^ ##??????????????????????? | | ^ ##### ##??????????????????????? | | ################## #####%##??????????????????????? | | ################## ##?## ##??????????????????????? | | ???????????????### ##### ##??????????????????????? | | ???????????????###+#####%##??????????????????????? | | ???????????????## = #%##??????????????????????? | | ???????????????## # ##??????????????????????? | | ???????????????## ! +%##??????????????????????? | | ???????????????## ! #%##??????????????????????? | | ???????????????## ;%##??????????????????????? | | ???????????????## ;%##??????????????????????? | | ???????????????#######;;%###?????????????????????? | | ???????????????####### ;%; #?#???????????????????? | | ????????????????????###; ;## ## ### ?????????????? | | ???????????????????###BB%R" "" "????????????? | | ???????????????????##;BB @Y Y " " ???????????? | | ???????????????????##; R% R R #??????????? | | ###################### % #??????????? | | ###################### #??????????? | | w ?????????? | | ??????????? | | ??????????? | | ??????????? | | t u u ???????????? | | ###################### ???????????? | | ##################### ????????????? | | ##?????????????????## ????????????? | | ##?????????????????## ??????????????? | | ###?????????????????## ????????????????? | | ###??????????????????######T#"???????????????????? | | ?????????????????????????????????????????????????? | | ?????????????????????????????????????????????????? | | | | | | | | | | | | | | | | | +----------------------------------------------------+ Best States ------------- Heat Dissipation 37 Energy Generation 15 Energy Capacity 250 Matter Stores 300 Matter Capacity 300 Sight Range 16 Robot Scan Range 14 Terrain Scan Density 10 ECM Strength 1 Jamming Range 12 Armor Coverage 375 Resistance: KI 30 Resistance: EM 15 Propulsion Shielding 33 Evasion (%) 55 Targeting Accuracy 6 Armor Integrity Analysis 30 Recoil Reduction 4 Item Schematics ----------------- None Robot Schematics ------------------ None Fabricated ------------ Nothing Repaired ---------- Nothing Alien Tech Used ----------------- None Achievements -------------- More Dakka Please Challenges ------------ None Game ------ Seed TrackerMeleeBooster Manual? 0 Play Time 01:13:32 Cumulative 11.1 hours Start 2025.10.02 @ 21:57:54 End 2025.10.02 @ 23:15:16 Sessions 1 Manual Loads 0 Difficulty Rogue Special Mode None Game No. 9 Rogue 9 Adventurer 0 Explorer 0 Win Type - Total 0 Types 0/0/0/0/0/0/0/0/0/0 Lore% 5 Gallery% 13 Achievement% 14 Wizard Run 0 Options --------- Layout 1 ASCII 0 Keyboard 0 Movement Mouse Keybinds 0 Fullscreen 1 Font 32/SmallcapsGlow Map View 50x35 Zoom Use 0% Tactical HUD 1 Map Filters NONE Filters NONE Steam 1 RUN: 181d431a-cdf5-43ec-a1c7-4723910bca28